[Event "*** Titled Tuesday Blitz"]
[Site "Chess.com"]
[Date "2020.11.24"]
[Round "3"]
[White "sbouchet"]
[Black "lefonghua"]
[Result "1-0"]
[WhiteElo "2324"]
[BlackElo "2500"]
[TimeControl "180+1"]
[EndTime "10:44:56 PST"]
[Termination "sbouchet won by resignation"]

1. e4 {[%clk 0:03:00.9]} 1... c5 {[%clk 0:02:59.5]} 2. c3 {[%clk 0:03:00.3]}
2... Nf6 {[%clk 0:02:59.2]} 3. e5 {[%clk 0:02:59.9]} 3... Nd5 {[%clk 0:02:59.8]}
4. d4 {[%clk 0:03:00.4]} 4... cxd4 {[%clk 0:03:00.6]} 5. Nf3 {[%clk 0:02:59.5]}
5... d6 {[%clk 0:03:01]} 6. Bc4 {[%clk 0:02:58.2]} 6... Nb6 {[%clk 0:02:58.8]}
7. Bb3 {[%clk 0:02:57.6]} 7... Nc6 {[%clk 0:02:53.8]} 8. exd6 {[%clk 0:02:52.7]}
8... Qxd6 {[%clk 0:02:53.3]} 9. O-O {[%clk 0:02:52.2]} 9... Bf5 {[%clk
0:02:39.2]} 10. Na3 {[%clk 0:02:20]} 10... a6 {[%clk 0:02:33.2]} 11. Nc2 {[%clk
0:01:47.8]} 11... d3 {[%clk 0:02:17.7]} 12. Ncd4 {[%clk 0:01:47.1]} 12... Nxd4
{[%clk 0:02:17.3]} 13. Nxd4 {[%clk 0:01:48]} 13... Bg6 {[%clk 0:02:16.5]} 14.
Qf3 {[%clk 0:01:43.8]} 14... Qc7 {[%clk 0:02:07.6]} 15. Bf4 {[%clk 0:01:40.2]}
15... Qc8 {[%clk 0:01:59.8]} 16. Rfe1 {[%clk 0:01:23.8]} 16... Nd7 {[%clk
0:01:45.4]} 17. Bd5 {[%clk 0:01:07.6]} 17... Ra7 {[%clk 0:01:43.9]} 18. Be3
{[%clk 0:00:41.3]} 18... e5 {[%clk 0:01:27.9]} 19. Nf5 {[%clk 0:00:28.9]} 19...
b6 {[%clk 0:01:12.4]} 20. Rad1 {[%clk 0:00:19.4]} 20... Bc5 {[%clk 0:01:04.6]}
21. Bxc5 {[%clk 0:00:18.2]} 21... Qxc5 {[%clk 0:01:04.8]} 22. Nxg7+ {[%clk
0:00:15.9]} 22... Kd8 {[%clk 0:01:00.9]} 23. Bxf7 {[%clk 0:00:14.5]} 23... Rf8
{[%clk 0:00:57]} 24. Ne6+ {[%clk 0:00:14.1]} 24... Ke7 {[%clk 0:00:57.5]} 25.
Nxc5 {[%clk 0:00:14.7]} 25... Rxf7 {[%clk 0:00:57.3]} 26. Qc6 {[%clk 0:00:13.6]}
26... bxc5 {[%clk 0:00:55.3]} 27. Rxe5+ {[%clk 0:00:12.4]} 27... Nxe5 {[%clk
0:00:53.7]} 28. Qxc5+ {[%clk 0:00:13.1]} 28... Kf6 {[%clk 0:00:54]} 29. Qd6+
{[%clk 0:00:11.8]} 29... Kg7 {[%clk 0:00:53.2]} 30. Qxe5+ {[%clk 0:00:11.5]}
30... Rf6 {[%clk 0:00:52.3]} 31. f4 {[%clk 0:00:11.6]} 31... Rf7 {[%clk
0:00:51.9]} 32. g3 {[%clk 0:00:11.2]} 32... Rf8 {[%clk 0:00:50.1]} 33. Rd2
{[%clk 0:00:11.5]} 33... Kg8 {[%clk 0:00:49.4]} 34. Kf2 {[%clk 0:00:11.8]} 34...
Kg7 {[%clk 0:00:46.9]} 35. h4 {[%clk 0:00:11.9]} 35... h5 {[%clk 0:00:46.4]} 36.
b4 {[%clk 0:00:11.9]} 36... Re8 {[%clk 0:00:46.5]} 37. Qc7+ {[%clk 0:00:11.3]}
37... Rf7 {[%clk 0:00:45.3]} 38. Qc5 {[%clk 0:00:11.1]} 38... Rfe7 {[%clk
0:00:45]} 39. Qd4+ {[%clk 0:00:10.9]} 39... Kh7 {[%clk 0:00:45.4]} 40. Rxd3
{[%clk 0:00:11.3]} 40... Bxd3 {[%clk 0:00:44.7]} 41. Qxd3+ {[%clk 0:00:11.1]}
41... Kh6 {[%clk 0:00:45.3]} 42. Qxa6+ {[%clk 0:00:11.1]} 42... Re6 {[%clk
0:00:45.7]} 43. Qd3 {[%clk 0:00:11.4]} 43... Kg7 {[%clk 0:00:45.4]} 44. a4
{[%clk 0:00:11.3]} 44... R6e7 {[%clk 0:00:42.2]} 45. a5 {[%clk 0:00:11.6]} 45...
Rc8 {[%clk 0:00:41.5]} 46. a6 {[%clk 0:00:11]} 46... Rec7 {[%clk 0:00:42.2]} 47.
b5 {[%clk 0:00:10.4]} 47... Rxc3 {[%clk 0:00:42.1]} 48. Qd4+ {[%clk 0:00:10.7]}
48... Kh7 {[%clk 0:00:42.2]} 49. b6 {[%clk 0:00:11]} 49... Rc2+ {[%clk
0:00:42.3]} 50. Ke3 {[%clk 0:00:10.5]} 50... R8c3+ {[%clk 0:00:42.5]} 51. Ke4
{[%clk 0:00:10.6]} 51... Rc4 {[%clk 0:00:43.2]} 52. b7 {[%clk 0:00:10.6]} 52...
Re2+ {[%clk 0:00:42.5]} 53. Kd3 {[%clk 0:00:09.3]} 53... Rd2+ {[%clk 0:00:42.1]}
54. Kxc4 {[%clk 0:00:09.4]} 54... Rxd4+ {[%clk 0:00:42.6]} 1-0

[Event "*** Titled Tuesday Blitz"]
[Site "Chess.com"]
[Date "2020.11.24"]
[Round "3"]
[White "Shankland"]
[Black "Tayson_7"]
[Result "1/2-1/2"]
[WhiteElo "2899"]
[BlackElo "2688"]
[TimeControl "180+1"]
[EndTime "10:44:57 PST"]
[Termination "Game drawn by agreement"]

1. e4 {[%clk 0:03:00.9]} 1... c5 {[%clk 0:02:59.3]} 2. Nf3 {[%clk 0:03:01.2]}
2... Nc6 {[%clk 0:02:49.3]} 3. d4 {[%clk 0:03:01.4]} 3... cxd4 {[%clk
0:02:50.2]} 4. Nxd4 {[%clk 0:03:01.9]} 4... g6 {[%clk 0:02:50.3]} 5. c4 {[%clk
0:03:01.6]} 5... Bg7 {[%clk 0:02:48.8]} 6. Be3 {[%clk 0:03:01.5]} 6... Qb6
{[%clk 0:02:48.7]} 7. Nb5 {[%clk 0:02:54.7]} 7... Qa5+ {[%clk 0:02:44.1]} 8. Bd2
{[%clk 0:02:54.8]} 8... Qb6 {[%clk 0:02:30.2]} 9. N1c3 {[%clk 0:02:52]} 9... Nf6
{[%clk 0:02:25.4]} 10. Be2 {[%clk 0:02:32.6]} 10... O-O {[%clk 0:02:23.5]} 11.
O-O {[%clk 0:02:27.7]} 11... a6 {[%clk 0:02:14.9]} 12. Be3 {[%clk 0:02:27.1]}
12... Qa5 {[%clk 0:02:15.1]} 13. Na3 {[%clk 0:02:26.3]} 13... d6 {[%clk
0:02:14.1]} 14. Qd2 {[%clk 0:02:23.2]} 14... Be6 {[%clk 0:02:13]} 15. Rfd1
{[%clk 0:02:20.1]} 15... Rfc8 {[%clk 0:02:12.3]} 16. f3 {[%clk 0:02:20.1]} 16...
Nd7 {[%clk 0:02:00.1]} 17. Rac1 {[%clk 0:02:15.2]} 17... Nce5 {[%clk 0:01:30.2]}
18. Nd5 {[%clk 0:02:10.9]} 18... Qxd2 {[%clk 0:01:31.1]} 19. Bxd2 {[%clk
0:02:04.5]} 19... Kf8 {[%clk 0:01:28]} 20. b3 {[%clk 0:02:00.4]} 20... Nc6
{[%clk 0:01:22.3]} 21. Nc2 {[%clk 0:01:58.1]} 21... Bxd5 {[%clk 0:01:11.4]} 22.
cxd5 {[%clk 0:01:48]} 22... Nd4 {[%clk 0:01:10.4]} 23. Nxd4 {[%clk 0:01:47.9]}
23... Bxd4+ {[%clk 0:01:11.3]} 24. Kf1 {[%clk 0:01:47.5]} 24... Bb2 {[%clk
0:01:11.4]} 25. Rb1 {[%clk 0:01:46.1]} 25... Ba3 {[%clk 0:01:11.3]} 26. Bd3
{[%clk 0:01:30.2]} 26... Ne5 {[%clk 0:00:51.6]} 27. Ke2 {[%clk 0:01:29.6]} 27...
Nxd3 {[%clk 0:00:38]} 28. Kxd3 {[%clk 0:01:29.6]} 28... a5 {[%clk 0:00:38.9]}
29. Bc1 {[%clk 0:01:21.9]} 29... Bxc1 {[%clk 0:00:31.3]} 30. Rbxc1 {[%clk
0:01:21.5]} 30... Ke8 {[%clk 0:00:31.4]} 31. Rc4 {[%clk 0:01:16.9]} 31... b5
{[%clk 0:00:30.7]} 32. Rxc8+ {[%clk 0:00:59.4]} 32... Rxc8 {[%clk 0:00:31.6]}
33. Rd2 {[%clk 0:00:59.9]} 33... h5 {[%clk 0:00:28.8]} 34. Rc2 {[%clk 0:01:00]}
34... Rxc2 {[%clk 0:00:22]} 35. Kxc2 {[%clk 0:01:00.9]} 35... Kd7 {[%clk
0:00:21.6]} 36. Kc3 {[%clk 0:01:00.6]} 36... Kc7 {[%clk 0:00:21]} 37. f4 {[%clk
0:00:59.4]} 37... Kb6 {[%clk 0:00:19.9]} 38. Kd4 {[%clk 0:00:59.2]} 38... f6
{[%clk 0:00:20.1]} 39. h4 {[%clk 0:00:54.3]} 39... f5 {[%clk 0:00:17.7]} 40. a3
{[%clk 0:00:40.8]} 40... Ka6 {[%clk 0:00:17.5]} 41. b4 {[%clk 0:00:21.7]} 41...
axb4 {[%clk 0:00:16.9]} 42. axb4 {[%clk 0:00:22.6]} 42... Kb6 {[%clk 0:00:17.5]}
43. Ke3 {[%clk 0:00:22.5]} 43... Kc7 {[%clk 0:00:17.4]} 44. Kd4 {[%clk
0:00:20.4]} 44... Kd7 {[%clk 0:00:17.4]} 45. e5 {[%clk 0:00:20.3]} 45... Kc7
{[%clk 0:00:17.2]} 46. e6 {[%clk 0:00:19.2]} 46... Kb6 {[%clk 0:00:17]} 47. Kd3
{[%clk 0:00:18.9]} 1/2-1/2

[Event "*** Titled Tuesday Blitz"]
[Site "Chess.com"]
[Date "2020.11.24"]
[Round "3"]
[White "Grandmaster2B"]
[Black "DonPreuss"]
[Result "1-0"]
[WhiteElo "2503"]
[BlackElo "2241"]
[TimeControl "180+1"]
[EndTime "10:44:58 PST"]
[Termination "Grandmaster2B won by resignation"]

1. e4 {[%clk 0:03:00.9]} 1... e5 {[%clk 0:02:59.5]} 2. Nf3 {[%clk 0:03:00.8]}
2... d5 {[%clk 0:02:59.8]} 3. exd5 {[%clk 0:02:56.8]} 3... e4 {[%clk 0:02:59.6]}
4. Qe2 {[%clk 0:02:56.3]} 4... Nf6 {[%clk 0:02:59.4]} 5. Nc3 {[%clk 0:02:55]}
5... Be7 {[%clk 0:02:59.1]} 6. Nxe4 {[%clk 0:02:54.1]} 6... O-O {[%clk 0:02:59]}
7. d3 {[%clk 0:02:53.7]} 7... Nxd5 {[%clk 0:02:58.6]} 8. Qd1 {[%clk 0:02:32.6]}
8... f5 {[%clk 0:02:52.7]} 9. Nc3 {[%clk 0:02:31.6]} 9... Bb4 {[%clk 0:02:52.1]}
10. Bd2 {[%clk 0:02:31.2]} 10... Re8+ {[%clk 0:02:51.6]} 11. Be2 {[%clk
0:02:29.5]} 11... Bxc3 {[%clk 0:02:43.3]} 12. bxc3 {[%clk 0:02:30.4]} 12... Nc6
{[%clk 0:02:41.1]} 13. O-O {[%clk 0:02:25.6]} 13... Qf6 {[%clk 0:02:39.7]} 14.
d4 {[%clk 0:02:18.4]} 14... Bd7 {[%clk 0:02:34.8]} 15. Bc4 {[%clk 0:02:09.9]}
15... Be6 {[%clk 0:02:30.5]} 16. Re1 {[%clk 0:02:08.9]} 16... Bf7 {[%clk
0:02:29.5]} 17. Ng5 {[%clk 0:02:02.2]} 17... Rxe1+ {[%clk 0:02:08.7]} 18. Qxe1
{[%clk 0:02:00.5]} 18... Re8 {[%clk 0:02:04.2]} 19. Qd1 {[%clk 0:01:52.6]} 19...
Na5 {[%clk 0:01:58.9]} 20. Bd3 {[%clk 0:01:43.8]} 20... Nb6 {[%clk 0:01:48.9]}
21. Nxf7 {[%clk 0:01:23.8]} 21... Qxf7 {[%clk 0:01:48.4]} 22. Qf3 {[%clk
0:01:22.7]} 22... Nac4 {[%clk 0:01:47.5]} 23. Bf4 {[%clk 0:01:20.5]} 23... c6
{[%clk 0:01:40.9]} 24. h3 {[%clk 0:01:14.6]} 24... Na4 {[%clk 0:01:29.1]} 25.
Bf1 {[%clk 0:01:00.3]} 25... h6 {[%clk 0:01:09.7]} 26. Rb1 {[%clk 0:00:57.2]}
26... g5 {[%clk 0:01:00.8]} 27. Bxc4 {[%clk 0:00:30.3]} 27... Qxc4 {[%clk
0:00:59.6]} 28. Be5 {[%clk 0:00:30.5]} 28... Qf7 {[%clk 0:00:43.2]} 29. c4
{[%clk 0:00:19.7]} 29... Nb6 {[%clk 0:00:41.5]} 30. c5 {[%clk 0:00:16.7]} 30...
Nd5 {[%clk 0:00:40.9]} 31. c4 {[%clk 0:00:15.6]} 31... Nf6 {[%clk 0:00:37.4]}
32. Qxf5 {[%clk 0:00:14.8]} 32... Re6 {[%clk 0:00:32.2]} 33. Kh2 {[%clk
0:00:10.1]} 33... h5 {[%clk 0:00:27.5]} 34. Qxg5+ {[%clk 0:00:09.8]} 34... Kh7
{[%clk 0:00:26.6]} 35. Qf5+ {[%clk 0:00:09.7]} 35... Kh6 {[%clk 0:00:24.6]} 36.
Rb3 {[%clk 0:00:06.5]} 36... Ng4+ {[%clk 0:00:22.2]} 37. hxg4 {[%clk 0:00:04.4]}
37... Qxf5 {[%clk 0:00:21.6]} 38. gxf5 {[%clk 0:00:05.3]} 38... Re7 {[%clk
0:00:21.9]} 39. Bf4+ {[%clk 0:00:06.2]} 39... Kg7 {[%clk 0:00:21.6]} 40. Rg3+
{[%clk 0:00:07.1]} 40... Kf6 {[%clk 0:00:21.7]} 41. Bg5+ {[%clk 0:00:08]} 41...
Kf7 {[%clk 0:00:20.6]} 42. Bxe7 {[%clk 0:00:08.9]} 42... Kxe7 {[%clk 0:00:21.5]}
43. Re3+ {[%clk 0:00:09.8]} 43... Kf6 {[%clk 0:00:22.3]} 44. Re5 {[%clk
0:00:10.6]} 44... b6 {[%clk 0:00:21.9]} 45. f4 {[%clk 0:00:11.5]} 45... h4
{[%clk 0:00:21.7]} 46. Kh3 {[%clk 0:00:11.9]} 46... b5 {[%clk 0:00:20.9]} 47.
cxb5 {[%clk 0:00:11.9]} 47... cxb5 {[%clk 0:00:21.8]} 48. d5 {[%clk 0:00:11.8]}
48... a5 {[%clk 0:00:21.7]} 49. d6 {[%clk 0:00:12.7]} 49... a4 {[%clk
0:00:22.6]} 50. d7 {[%clk 0:00:13.6]} 1-0

[Event "*** Titled Tuesday Blitz"]
[Site "Chess.com"]
[Date "2020.11.24"]
[Round "3"]
[White "lider34"]
[Black "Geller_Jakov"]
[Result "0-1"]
[WhiteElo "2431"]
[BlackElo "2679"]
[TimeControl "180+1"]
[EndTime "10:44:59 PST"]
[Termination "Geller_Jakov won on time"]

1. e4 {[%clk 0:03:00.9]} 1... c5 {[%clk 0:02:59.9]} 2. c3 {[%clk 0:02:59.9]}
2... d5 {[%clk 0:02:58.7]} 3. exd5 {[%clk 0:02:59.3]} 3... Qxd5 {[%clk
0:02:59.6]} 4. d4 {[%clk 0:02:59.6]} 4... Nf6 {[%clk 0:03:00.1]} 5. Nf3 {[%clk
0:02:59.4]} 5... Bg4 {[%clk 0:03:00.7]} 6. Be2 {[%clk 0:02:58.7]} 6... e6 {[%clk
0:03:00.9]} 7. O-O {[%clk 0:02:58.6]} 7... Nc6 {[%clk 0:03:00.3]} 8. h3 {[%clk
0:02:58.2]} 8... Bh5 {[%clk 0:03:00]} 9. Be3 {[%clk 0:02:58]} 9... cxd4 {[%clk
0:03:00.4]} 10. Nxd4 {[%clk 0:02:57.9]} 10... Bxe2 {[%clk 0:02:58.9]} 11. Qxe2
{[%clk 0:02:58.8]} 11... Bc5 {[%clk 0:02:41.3]} 12. Nb5 {[%clk 0:02:49.5]} 12...
Rc8 {[%clk 0:02:28.6]} 13. Rd1 {[%clk 0:02:43.8]} 13... Qe5 {[%clk 0:02:27.7]}
14. N1a3 {[%clk 0:02:10.4]} 14... Bxa3 {[%clk 0:02:14.2]} 15. bxa3 {[%clk
0:01:49.2]} 15... O-O {[%clk 0:02:12]} 16. f4 {[%clk 0:01:43.5]} 16... Qb8
{[%clk 0:01:56.3]} 17. Bc5 {[%clk 0:01:34.9]} 17... Qxf4 {[%clk 0:01:38.3]} 18.
Bxf8 {[%clk 0:01:32.3]} 18... Rxf8 {[%clk 0:01:39.2]} 19. Rf1 {[%clk 0:01:24.2]}
19... Qg5 {[%clk 0:01:35]} 20. Rad1 {[%clk 0:01:15.2]} 20... Nd5 {[%clk
0:01:28.1]} 21. Qd2 {[%clk 0:00:55.1]} 21... Qe7 {[%clk 0:01:05.6]} 22. c4
{[%clk 0:00:38.1]} 22... Qc5+ {[%clk 0:01:02.9]} 23. Qf2 {[%clk 0:00:37.3]}
23... Qxc4 {[%clk 0:00:56.9]} 24. Nd6 {[%clk 0:00:33.9]} 24... Qc3 {[%clk
0:00:41.5]} 25. Nxf7 {[%clk 0:00:33.3]} 25... Qe3 {[%clk 0:00:40.2]} 26. Kh1
{[%clk 0:00:25.6]} 26... Qxf2 {[%clk 0:00:39.7]} 27. Rxf2 {[%clk 0:00:23.3]}
27... Rxf7 {[%clk 0:00:40.3]} 28. Re2 {[%clk 0:00:21.5]} 28... Rf6 {[%clk
0:00:38.2]} 29. Rde1 {[%clk 0:00:17.9]} 29... e5 {[%clk 0:00:35.8]} 30. Rd2
{[%clk 0:00:17.8]} 30... Nf4 {[%clk 0:00:32.2]} 31. Rd7 {[%clk 0:00:16.6]} 31...
Rf7 {[%clk 0:00:32]} 32. Rd6 {[%clk 0:00:16.3]} 32... Re7 {[%clk 0:00:28.5]} 33.
Rb1 {[%clk 0:00:14.1]} 33... e4 {[%clk 0:00:28]} 34. Rf1 {[%clk 0:00:09.8]}
34... e3 {[%clk 0:00:25.2]} 35. Kh2 {[%clk 0:00:02.9]} 35... e2 {[%clk
0:00:20.5]} 36. Re1 {[%clk 0:00:03.2]} 36... Re3 {[%clk 0:00:16.9]} 37. g3
{[%clk 0:00:03.3]} 37... Nd3 {[%clk 0:00:16.6]} 38. Rxd3 {[%clk 0:00:02.7]}
38... Rxd3 {[%clk 0:00:17.5]} 39. Rxe2 {[%clk 0:00:02.9]} 39... Rxa3 {[%clk
0:00:18.1]} 0-1

[Event "*** Titled Tuesday Blitz"]
[Site "Chess.com"]
[Date "2020.11.24"]
[Round "3"]
[White "beautroll"]
[Black "EdmundPlayer"]
[Result "1-0"]
[WhiteElo "2399"]
[BlackElo "2119"]
[TimeControl "180+1"]
[EndTime "10:44:59 PST"]
[Termination "beautroll won by resignation"]

1. e4 {[%clk 0:03:00.9]} 1... e5 {[%clk 0:02:57.5]} 2. Nf3 {[%clk 0:03:00.1]}
2... Nc6 {[%clk 0:02:57.3]} 3. Bc4 {[%clk 0:03:00.4]} 3... Bc5 {[%clk
0:02:55.9]} 4. c3 {[%clk 0:03:00]} 4... Nf6 {[%clk 0:02:42.3]} 5. d3 {[%clk
0:02:59]} 5... d6 {[%clk 0:02:35.6]} 6. Bg5 {[%clk 0:02:55.9]} 6... h6 {[%clk
0:02:33.3]} 7. Bh4 {[%clk 0:02:55.4]} 7... a5 {[%clk 0:02:29.2]} 8. h3 {[%clk
0:02:49]} 8... Be6 {[%clk 0:01:35.9]} 9. Nbd2 {[%clk 0:02:41.8]} 9... Bxc4
{[%clk 0:01:30]} 10. Nxc4 {[%clk 0:02:42.2]} 10... b5 {[%clk 0:01:14.6]} 11. Ne3
{[%clk 0:02:41.1]} 11... Bxe3 {[%clk 0:01:11.8]} 12. fxe3 {[%clk 0:02:42]} 12...
Qe7 {[%clk 0:01:01.6]} 13. O-O {[%clk 0:02:34.7]} 13... Qe6 {[%clk 0:00:56.2]}
14. d4 {[%clk 0:02:26]} 14... Nd8 {[%clk 0:00:39.7]} 15. Qd3 {[%clk 0:01:52.7]}
15... Rb8 {[%clk 0:00:25.9]} 16. Bg3 {[%clk 0:01:46.3]} 16... exd4 {[%clk
0:00:20.6]} 17. exd4 {[%clk 0:01:47.2]} 17... O-O {[%clk 0:00:16.3]} 18. e5
{[%clk 0:01:40.5]} 18... dxe5 {[%clk 0:00:15.7]} 19. Nxe5 {[%clk 0:01:41.4]}
19... Nc6 {[%clk 0:00:14]} 20. Rae1 {[%clk 0:01:35.4]} 20... Nxe5 {[%clk
0:00:13.1]} 21. Bxe5 {[%clk 0:01:35.9]} 21... Qc6 {[%clk 0:00:11.8]} 22. Bxf6
{[%clk 0:01:34]} 22... gxf6 {[%clk 0:00:11.4]} 23. Qg3+ {[%clk 0:01:32.8]} 23...
Kh7 {[%clk 0:00:10.6]} 24. Qh4 {[%clk 0:01:30]} 24... Rg8 {[%clk 0:00:10]} 25.
Rf2 {[%clk 0:01:23.6]} 25... Rg6 {[%clk 0:00:10.5]} 26. Re7 {[%clk 0:01:11.6]}
26... Qd5 {[%clk 0:00:09.8]} 27. Rxc7 {[%clk 0:00:49.5]} 27... Rbg8 {[%clk
0:00:10.1]} 28. g4 {[%clk 0:00:49.5]} 28... f5 {[%clk 0:00:10.3]} 29. Qh5 {[%clk
0:00:45]} 29... Qxa2 {[%clk 0:00:06.6]} 30. Qxf5 {[%clk 0:00:42.4]} 30... Rg7
{[%clk 0:00:06.2]} 31. Rxf7 {[%clk 0:00:37.6]} 31... Rxf7 {[%clk 0:00:05.3]} 32.
Qxf7+ {[%clk 0:00:38.5]} 32... Qxf7 {[%clk 0:00:04.7]} 33. Rxf7+ {[%clk
0:00:39.4]} 33... Rg7 {[%clk 0:00:02]} 34. Rxg7+ {[%clk 0:00:35.3]} 34... Kxg7
{[%clk 0:00:02.9]} 35. Kf2 {[%clk 0:00:34.5]} 35... Kf6 {[%clk 0:00:01.9]} 36.
Kf3 {[%clk 0:00:33.6]} 36... Ke6 {[%clk 0:00:02.8]} 37. h4 {[%clk 0:00:31.5]}
37... Kd5 {[%clk 0:00:03.7]} 38. g5 {[%clk 0:00:30.2]} 38... b4 {[%clk
0:00:03.2]} 39. cxb4 {[%clk 0:00:27.5]} 39... a4 {[%clk 0:00:04.1]} 40. gxh6
{[%clk 0:00:23.6]} 40... Kc4 {[%clk 0:00:05]} 41. h7 {[%clk 0:00:22.2]} 1-0

[Event "*** Titled Tuesday Blitz"]
[Site "Chess.com"]
[Date "2020.11.24"]
[Round "3"]
[White "VinzentSpitzl"]
[Black "canary2016"]
[Result "1-0"]
[WhiteElo "2366"]
[BlackElo "1966"]
[TimeControl "180+1"]
[EndTime "10:44:59 PST"]
[Termination "VinzentSpitzl won on time"]

1. e4 {[%clk 0:03:00.9]} 1... c5 {[%clk 0:02:58.9]} 2. Nf3 {[%clk 0:02:56.4]}
2... d6 {[%clk 0:02:58.4]} 3. d4 {[%clk 0:02:56.9]} 3... cxd4 {[%clk 0:02:58.3]}
4. Nxd4 {[%clk 0:02:57.8]} 4... Nf6 {[%clk 0:02:58.5]} 5. Nc3 {[%clk 0:02:57.7]}
5... a6 {[%clk 0:02:58.7]} 6. Bg5 {[%clk 0:02:58]} 6... e6 {[%clk 0:02:58.1]} 7.
Qe2 {[%clk 0:02:58.4]} 7... Be7 {[%clk 0:02:57.2]} 8. O-O-O {[%clk 0:02:58.9]}
8... Nc6 {[%clk 0:02:50.7]} 9. f4 {[%clk 0:02:58.6]} 9... h6 {[%clk 0:02:49.7]}
10. Bh4 {[%clk 0:02:57.7]} 10... Qb6 {[%clk 0:02:45.9]} 11. Nb3 {[%clk
0:02:50.8]} 11... Bd7 {[%clk 0:02:41.5]} 12. g4 {[%clk 0:02:46.3]} 12... Rc8
{[%clk 0:02:22.5]} 13. Bg2 {[%clk 0:02:43.8]} 13... e5 {[%clk 0:01:51.2]} 14. f5
{[%clk 0:02:23.6]} 14... Na5 {[%clk 0:01:44.1]} 15. Bxf6 {[%clk 0:02:19.2]}
15... Bxf6 {[%clk 0:01:43]} 16. Nd5 {[%clk 0:02:15.7]} 16... Nxb3+ {[%clk
0:01:21.8]} 17. axb3 {[%clk 0:02:04]} 17... Qxb3 {[%clk 0:01:14.9]} 18. Kb1
{[%clk 0:02:04.1]} 18... Qc4 {[%clk 0:00:48.8]} 19. Qxc4 {[%clk 0:01:47.9]}
19... Rxc4 {[%clk 0:00:47.9]} 20. h4 {[%clk 0:01:48.3]} 20... Be7 {[%clk
0:00:40.8]} 21. g5 {[%clk 0:01:40.9]} 21... hxg5 {[%clk 0:00:39.9]} 22. hxg5
{[%clk 0:01:41.8]} 22... Rg8 {[%clk 0:00:30.8]} 23. f6 {[%clk 0:01:15.2]} 23...
gxf6 {[%clk 0:00:30]} 24. gxf6 {[%clk 0:01:15.4]} 24... Bf8 {[%clk 0:00:25.4]}
25. Bf3 {[%clk 0:01:12.9]} 25... Be6 {[%clk 0:00:21.3]} 26. b3 {[%clk
0:01:05.3]} 26... Rc6 {[%clk 0:00:18.2]} 27. Rh7 {[%clk 0:00:54.8]} 27... Rg3
{[%clk 0:00:12.2]} 28. Bh5 {[%clk 0:00:49]} 28... Rg2 {[%clk 0:00:10.2]} 29. Ne3
{[%clk 0:00:43.4]} 29... Rg3 {[%clk 0:00:09.1]} 30. Nf5 {[%clk 0:00:34.1]} 30...
Rg2 {[%clk 0:00:06.7]} 31. Rc1 {[%clk 0:00:28.1]} 31... Rf2 {[%clk 0:00:06]} 32.
Ng7+ {[%clk 0:00:22.8]} 32... Kd7 {[%clk 0:00:04.3]} 33. Nxe6 {[%clk 0:00:22.1]}
33... Kxe6 {[%clk 0:00:04.4]} 34. Bxf7+ {[%clk 0:00:14.7]} 34... Kxf6 {[%clk
0:00:02.6]} 35. Bd5 {[%clk 0:00:14.7]} 35... Rc8 {[%clk 0:00:01.9]} 36. Rf7+
{[%clk 0:00:14.2]} 36... Kg6 {[%clk 0:00:01.6]} 37. Rxf2 {[%clk 0:00:14.2]}
37... Bg7 {[%clk 0:00:01.7]} 38. Rg1+ {[%clk 0:00:13.9]} 38... Kh7 {[%clk
0:00:01.9]} 39. Rh2+ {[%clk 0:00:12.1]} 1-0

[Event "*** Titled Tuesday Blitz"]
[Site "Chess.com"]
[Date "2020.11.24"]
[Round "3"]
[White "Saylormoon"]
[Black "ChessQueen"]
[Result "0-1"]
[WhiteElo "2368"]
[BlackElo "2750"]
[TimeControl "180+1"]
[EndTime "10:45:01 PST"]
[Termination "ChessQueen won by resignation"]

1. e4 {[%clk 0:03:00.9]} 1... c6 {[%clk 0:02:59.4]} 2. c4 {[%clk 0:02:58.2]}
2... d5 {[%clk 0:02:58.6]} 3. cxd5 {[%clk 0:02:59.1]} 3... cxd5 {[%clk
0:02:58.8]} 4. exd5 {[%clk 0:02:59.8]} 4... Nf6 {[%clk 0:02:58.9]} 5. Qa4+
{[%clk 0:03:00.4]} 5... Nbd7 {[%clk 0:02:56.8]} 6. Nc3 {[%clk 0:03:00.5]} 6...
g6 {[%clk 0:02:57.3]} 7. Bc4 {[%clk 0:03:01]} 7... Bg7 {[%clk 0:02:57]} 8. d3
{[%clk 0:03:01.6]} 8... O-O {[%clk 0:02:55.9]} 9. Nf3 {[%clk 0:03:02.1]} 9... a6
{[%clk 0:02:54.7]} 10. Qa3 {[%clk 0:03:02.3]} 10... Rb8 {[%clk 0:02:51.6]} 11.
Bf4 {[%clk 0:02:48.5]} 11... Ra8 {[%clk 0:02:47]} 12. O-O {[%clk 0:02:43.7]}
12... Nb6 {[%clk 0:02:39.8]} 13. Qb3 {[%clk 0:02:43.1]} 13... Bg4 {[%clk
0:02:34.7]} 14. Ne5 {[%clk 0:02:42.5]} 14... Bf5 {[%clk 0:02:30.8]} 15. h3
{[%clk 0:02:38.6]} 15... Nfd7 {[%clk 0:02:09.1]} 16. Nxd7 {[%clk 0:02:14.8]}
16... Nxd7 {[%clk 0:02:08.6]} 17. a4 {[%clk 0:02:15.3]} 17... Nc5 {[%clk
0:02:02.8]} 18. Qd1 {[%clk 0:02:12.5]} 18... Rc8 {[%clk 0:01:45.1]} 19. Rc1
{[%clk 0:02:09.2]} 19... Qb6 {[%clk 0:01:41.9]} 20. Be3 {[%clk 0:02:03.2]} 20...
Qxb2 {[%clk 0:01:36.9]} 21. Ne2 {[%clk 0:01:16.9]} 21... Nxa4 {[%clk 0:01:03.3]}
22. Rb1 {[%clk 0:01:01.1]} 22... Qa3 {[%clk 0:00:49.7]} 23. Rxb7 {[%clk
0:00:52.9]} 23... Nb2 {[%clk 0:00:48]} 24. Qb3 {[%clk 0:00:49.9]} 24... Nxc4
{[%clk 0:00:44.1]} 25. dxc4 {[%clk 0:00:46.8]} 25... Qxb3 {[%clk 0:00:44.4]} 26.
Rxb3 {[%clk 0:00:47.6]} 26... Rxc4 {[%clk 0:00:44.9]} 27. Rb7 {[%clk 0:00:43.6]}
27... Bf6 {[%clk 0:00:37.1]} 28. Ra7 {[%clk 0:00:43.5]} 28... Ra4 {[%clk
0:00:32.2]} 29. Ng3 {[%clk 0:00:38.2]} 29... Bd3 {[%clk 0:00:30.6]} 30. Rd1
{[%clk 0:00:34.3]} 30... Bb5 {[%clk 0:00:30.6]} 31. d6 {[%clk 0:00:33.7]} 31...
exd6 {[%clk 0:00:30.5]} 32. Rxd6 {[%clk 0:00:34.6]} 32... Be5 {[%clk 0:00:30.8]}
33. Rd5 {[%clk 0:00:29.8]} 33... Bxg3 {[%clk 0:00:27.3]} 34. fxg3 {[%clk
0:00:30.7]} 34... Re4 {[%clk 0:00:26.7]} 35. Bh6 {[%clk 0:00:30.1]} 35... Rfe8
{[%clk 0:00:26.7]} 36. Rc5 {[%clk 0:00:26.7]} 36... R4e7 {[%clk 0:00:21]} 37.
Rxe7 {[%clk 0:00:24]} 37... Rxe7 {[%clk 0:00:21.5]} 38. Rc8+ {[%clk 0:00:23.3]}
38... Re8 {[%clk 0:00:22.1]} 39. Rc7 {[%clk 0:00:20]} 39... Ra8 {[%clk
0:00:20.5]} 40. Kf2 {[%clk 0:00:16.8]} 40... a5 {[%clk 0:00:20.9]} 41. Rc3
{[%clk 0:00:17]} 41... a4 {[%clk 0:00:21.1]} 42. Ra3 {[%clk 0:00:17.2]} 42...
Bc4 {[%clk 0:00:21.5]} 43. Ke3 {[%clk 0:00:16.7]} 43... Bb3 {[%clk 0:00:21.7]}
44. Kd4 {[%clk 0:00:16.9]} 44... f6 {[%clk 0:00:22.2]} 45. Bf4 {[%clk
0:00:16.1]} 45... Kf7 {[%clk 0:00:22.1]} 46. Bd6 {[%clk 0:00:16]} 46... Rd8
{[%clk 0:00:20.1]} 47. Kc5 {[%clk 0:00:16.3]} 47... Rc8+ {[%clk 0:00:20.7]} 48.
Kb5 {[%clk 0:00:14.7]} 48... Rc2 {[%clk 0:00:21.3]} 0-1